Cogmind - Beta 14 @@@ ROGUE MODE // 2024.08.12 @ 22:47:16 Player: FauxMaasks Result: Destroyed by D-53 Grenadier with Mini Grenade Launcher Performance ------------- Evolutions (0) 0 Regions Visited (2) 400 Robots Destroyed (8) 40 Value Destroyed (58) 58 Prototype IDs (0) 0 Alien Tech Used (0) 0 Bonus (0) 0 TOTAL SCORE: 498 Bonus ------- None Cogmind --------- Core Integrity 0/250 Matter 266/300 Energy 88/100 System Corruption 0% Temperature Cool (0) Movement Core (50) Location -10/Mines Parts ------- > --- POWER (1) -------- (None) > --- PROPULSION (2) --- (None) > --- UTILITY (2) ------ (None) > --- WEAPON (2) ------- (None) > --- INVENTORY (5) ---- Light Ion Engine Light Treads Wheel Medium Laser Mining Claw Peak State ------------ > --- POWER ------------ Ion Engine > --- PROPULSION ------- Wheel Compact Wheel > --- UTILITY ---------- Small Storage Unit Improved Terrain Scanner > --- WEAPON ----------- Medium Laser Light Assault Rifle > --- INVENTORY -------- Light Ion Engine Light Treads Light Treads [Rating: 9] Favorites ----------- Power Ion Engine Engine Ion Engine Propulsion Wheel Wheel Wheel Utility Small Storage Unit Device Improved Terrain Scanner Storage Small Storage Unit Weapon Light Assault Rifle Energy Gun Medium Laser Ballistic Gun Light Assault Rifle Launcher Grenade Launcher Slashing Weapon Mining Claw Build | -11 -10 -10 ------- Run | Yrd Mat Min Slots Evolved . | . . . Power . | . . . Propulsion . | . . . Utility . | . . . Weapon . | . . . Parts Attached 16 | 7 6 3 Power 1 | 1 . . Engine 1 | 1 . . Core . | . . . Reactor . | . . . Propulsion 5 | 2 2 1 Treads . | . . . Leg . | . . . Wheel 5 | 2 2 1 Hover . | . . . Flight . | . . . Utility 2 | 2 . . Device 1 | 1 . . Storage 1 | 1 . . Processor . | . . . Hackware . | . . . Protection . | . . . Artifact . | . . . Weapon 8 | 2 4 2 Energy Gun 3 | 1 1 1 Energy Cannon . | . . . Ballistic Gun 2 | 1 1 . Ballistic Cannon . | . . . Launcher 1 | . . 1 Special Weapon . | . . . Impact Weapon . | . . . Slashing Weapon 2 | . 2 . Piercing Weapon . | . . . Special Melee Weapon . | . . . Unidentified Prototypes . | . . . Parts Lost 7 | . . 7 Power 1 | . . 1 Propulsion 3 | . . 3 Utility 1 | . . 1 Weapon 2 | . . 2 Highest Loss Streak 7 | . . 7 To Critical Strikes . | . . . Average Slot Usage (%) 99 | . 100 97 Engine 13 | . 14 13 Wheel 28 | . 28 28 Device 14 | . 14 14 Storage 14 | . 14 14 Energy Gun 11 | . 12 7 Ballistic Gun 12 | . 11 13 Slashing Weapon 4 | . 3 6 Peak Build Rating 9 | 9 9 9 Average Rating 8 | 5 8 8 On Entrance 6 | . 9 9 Naked Turns 2 | . . 2 Heaviest Build 15 | 14 15 14 Greatest Support 26 | 26 26 26 Greatest Overweight (x) 1 | . 1 . Average Overweight (x) . | . . . Largest Inventory Capacity 8 | 8 8 8 Average Capacity 7 | 7 8 7 Most Carried 8 | 5 8 8 Average Carried 6 | 2 6 7 Final Capacity 8 | 8 8 5 Final Carried 8 | 4 8 5 Class Distribution -------------------- 100% | Mutant Dominant Class ---------------- Mutant | -10/Materials Mutant | -10/Mines Resources | -11 -10 -10 ----------- Run | Yrd Mat Min Matter Collected 335 | 275 30 30 Remotely . | . . . Salvage Created 170 | 53 87 30 Parts 18 | 8 7 3 Haulers Intercepted 1 | . 1 . Recyclers Shooed . | . . . Parts Field Recycled . | . . . Retrieved Matter . | . . . Parts Self-Destructed . | . . . Prevented . | . . . Kills | -11 -10 -10 ------- Run | Yrd Mat Min Combat Hostiles Destroyed 3 | . 3 . Guns 3 | . 3 . Classes Destroyed 4 | 1 2 1 Builder 1 | . . 1 Tunneler 3 | 3 . . Hauler 1 | . 1 . Swarmer 3 | . 3 . Best Kill Streak 3 | 3 2 1 Combat Bots Only 2 | . 2 . Max Kills in Single Turn 1 | 1 1 1 Gunslinging . | . . . Exploded . | . . . Melee . | . . . Uniques/NPCs Destroyed . | . . . Combat | -11 -10 -10 -------- Run | Yrd Mat Min Hostile Shots Fired 30 | . 15 15 Missed 4 | . 4 . Damage Taken 682 | . 98 584 Core 256 | . 24 232 Absorbed by Shields . | . . . Core Remaining (%) 100 | 100 . . Volleys Fired 24 | 5 15 4 Largest 2 | 2 2 2 Hottest 70 | 70 70 70 Shots Fired 48 | 10 30 8 Gun 46 | 10 30 6 Cannon . | . . . Launcher 2 | . . 2 Special . | . . . Kinetic 24 | 5 15 4 Thermal 22 | 5 15 2 Explosive 2 | . . 2 Electromagnetic . | . . . Robot Hit Streak 7 | 3 7 3 Robot Miss Streak 3 | 2 3 2 Penetration Max . | . . . Secondary Targets . | . . . Shots Hit Robots 24 | 4 17 3 Core Hits 12 | 3 5 4 Critical Kills . | . . . Critical Parts Destroyed . | . . . Critical Strikes 1 | . . 1 Burn 1 | . . 1 Melee Attacks 6 | . 6 . Impact . | . . . Slashing 6 | . 6 . Piercing . | . . . Sneak Attacks . | . . . Combat Hostiles . | . . . Follow-up Attacks . | . . . Damage Inflicted 302 | 59 189 54 Guns 271 | 59 189 23 Cannons . | . . . Explosions 31 | . . 31 Melee . | . . . Ramming . | . . . Kinetic 77 | 9 58 10 Thermal 194 | 50 131 13 Explosive 31 | . . 31 Electromagnetic . | . . . Impact . | . . . Slashing . | . . . Piercing . | . . . Highest Corruption . | . . . Average Corruption . | . . . Corruption Purged . | . . . Corruption Blocked . | . . . Overload Shots . | . . . Overflow Damage . | . . . Projectiles . | . . . Explosions . | . . . Melee . | . . . Knockbacks . | . . . Impact . | . . . Kinetic . | . . . Secondary . | . . . Self-Inflicted Damage . | . . . Shots . | . . . Rammed . | . . . Targets Rammed . | . . . Kicked . | . . . Crushed . | . . . Highest Temperature 90 | 90 70 30 Average Temperature 30 | 44 28 15 Received Heat Transfer 12 | . 12 . Siege Activations . | . . . Robots Corrupted . | . . . Combat Hostiles . | . . . Parts Fried . | . . . Impact Corruptions . | . . . Robots Melted . | . . . Combat Hostiles . | . . . Parts Melted 1 | . . 1 Heat Transferred 629 | 148 370 111 Parts Sabotaged . | . . . Parts Stolen . | . . . Parts Stripped . | . . . Power Chain Reactions . | . . . Alert | -11 -10 -10 ------- Run | Yrd Mat Min Peak Influence 231 | 15 231 28 Initial 12 | . 9 12 Average 55 | 3 86 13 Maximum Alert Level 1 | . 1 . Low Security (%) 93 | 100 88 100 Level 1 6 | . 11 . Level 2 . | . . . Level 3 . | . . . Level 4 . | . . . Level 5 . | . . . High Security . | . . . Max Security . | . . . Squads Dispatched 1 | . 1 . Investigation 1 | . 1 . Extermination . | . . . Reinforcement . | . . . Assault . | . . . Garrison . | . . . Intercept . | . . . Searches Triggered . | . . . Construction Impeded . | . . . Haulers Reinforced . | . . . Active Scanning Responses . | . . . Cargo Convoy Interrupts . | . . . Stealth | -11 -10 -10 --------- Run | Yrd Mat Min Distress Signals 1 | . 1 . Communications Jammed . | . . . Distress Signals . | . . . Times Spotted 14 | . 11 3 Peak Tracking Total 4 | . 4 3 Tactical Retreats 1 | . 1 . Traps | -11 -10 -10 ------- Run | Yrd Mat Min Traps Triggered 2 | . 2 . Indirectly . | . . . Trap Hack Attempts . | . . . Triggered . | . . . Disarmed . | . . . Reprogrammed . | . . . Reused . | . . . Traps Extracted . | . . . Installed . | . . . Triggered . | . . . Machines | -11 -10 -10 ---------- Run | Yrd Mat Min Machines Disabled . | . . . Max in Single Turn . | . . . Machines Repaired . | . . . Machines Dismantled . | . . . Machines Sabotaged . | . . . Overloaded Fab Kills . | . . . Hacking | -11 -10 -10 --------- Run | Yrd Mat Min Machines Accessed 6 | . 6 . Terminals 5 | . 5 . Fabricators . | . . . Repair Stations . | . . . Recycling Units 1 | . 1 . Scanalyzers . | . . . Garrison Access . | . . . Total Hacks 14 | . 14 . Successful 8 | . 8 . Failed 6 | . 6 . Catastrophic . | . . . Database Lockouts . | . . . Manual 9 | . 9 . Terminals 13 | . 13 . Fabricators . | . . . Repair Stations . | . . . Recycling Units 1 | . 1 . Scanalyzers . | . . . Garrison Access . | . . . Terminal Hacks 5 | . 5 . Robot Analysis 1 | . 1 . Branch Access Points 1 | . 1 . Locate Traps 2 | . 2 . Patrol Status 1 | . 1 . Fabricator Hacks . | . . . Repair Station Hacks . | . . . Recycling Unit Hacks . | . . . Scanalyzer . | . . . Garrison Access Hacks . | . . . Unauthorized Hacks 3 | . 3 . Terminals 2 | . 2 . Botnet 2 | . 2 . Fabricators . | . . . Repair Stations . | . . . Recycling Units 1 | . 1 . Tunnel 1 | . 1 . Scanalyzers . | . . . Garrison Access . | . . . Data Cores Recovered . | . . . Used . | . . . Hacking Detections 5 | . 5 . Full Trace Events . | . . . Feedback Events . | . . . Feedback Blocked . | . . . Robot Schematics Acquired . | . . . Robots Built . | . . . Authchips . | . . . Time . | . . . Total Robot Build Rating . | . . . Part Schematics Acquired . | . . . Parts Built . | . . . Authchips . | . . . Time . | . . . Total Part Build Rating . | . . . Parts Repaired . | . . . Time . | . . . Parts Recycled . | . . . Recycled Matter . | . . . Retrieved Matter . | . . . Retrieved Components . | . . . Parts Scanalyzed . | . . . Part Schematics Acquired . | . . . Parts Damaged . | . . . Bothacking | -11 -10 -10 ------------ Run | Yrd Mat Min Used RIF Installer . | . . . Robots Hacked . | . . . Non-combat . | . . . Combat . | . . . Robot Hacks Applied . | . . . Relay Couplers Released . | . . . Fabnet Peak Effective % . | . . . Robots Rewired . | . . . Allies Hacked . | . . . Hacks Repelled . | . . . Allies | -11 -10 -10 -------- Run | Yrd Mat Min Total Allies . | . . . Largest Group . | . . . Highest-Rated Group . | . . . Highest-Rated Ally . | . . . Total Orders . | . . . Ally Attacks . | . . . Total Damage . | . . . Kills . | . . . Allies Corrupted . | . . . Allies Melted . | . . . Intel | -11 -10 -10 ------- Run | Yrd Mat Min Robot Analysis Total 1 | . 1 . Derelict Logs Recovered 1 | . . 1 Drone Launches . | . . . Drone Recoveries . | . . . Exploration | -11 -10 -10 ------------- Run | Yrd Mat Min Turns Passed 684 | 77 409 198 Spaces Moved 613 | 52 361 200 Core 5 | 1 . 4 Treads . | . . . Legs . | . . . Wheels 608 | 51 361 196 Hover . | . . . Flight . | . . . Fastest Speed 50 | 50 90 50 Average Speed 89 | 89 90 88 Slowest Speed 100 | 100 95 90 Overloaded Moves . | . . . Propulsion Burnouts . | . . . Robots Hopped . | . . . Cave-ins Triggered . | . . . Exploration Rate (%) 41 | 3 73 47 Regions Visited 2 Branch Regions 1 Pre-discovered Areas 2 | . 1 1 Known Exits Taken 1 | . 1 . Unknown Exits Taken 1 | 1 . . Scrap Searched . | . . . Spaces Dug 6 | . 6 . Terrain Destroyed 25 | . 6 19 Melee 6 | . 6 . Projectile . | . . . AOE 19 | . . 19 Terrain Rammed . | . . . Walls Destroyed . | . . . Machines Disabled . | . . . Actions | -11 -10 -10 --------- Run | Yrd Mat Min Total 685 | 70 403 212 Wait 12 | . 8 4 Move 611 | 51 360 200 Hop . | . . . Pick Up 12 | 6 6 . Fast Attach 9 | 6 3 . Attach 2 | 1 . 1 Detach . | . . . Swap 5 | . 3 2 Drop 4 | 1 2 1 Fire 24 | 5 15 4 Melee 6 | . 6 . Ram . | . . . Kick . | . . . Crush . | . . . Escape Stasis . | . . . Rewire . | . . . Trap . | . . . Miscellaneous . | . . . Route ------- -11/Scrapyard -10/Materials (discovered 3 exits: [*Mat] / *Min x2) -10/Mines History --------- Turn | Location | Event 25 | -11/Scrapyard | Discovered new exit (range 16) 78 | -11/Scrapyard | Entered Materials 89 | -10/Materials | Identified exit to Mines 305 | -10/Materials | Discovered new exit (range 8) 310 | -10/Materials | Build established: Mutant 487 | -10/Materials | Entered Mines 581 | -10/Mines | Learned location of Zion (-7) 632 | -10/Mines | Assembled infested the area 682 | -10/Mines | Core integrity fell below 50% 685 | -10/Mines | Core integrity fell below 20% 685 | -10/Mines | Destroyed by D-53 Grenadier with Mini Grenade Launcher Last Messages --------------- 00593_ U-05 Engineer destroyed. 00595_ Acquired 30 matter. 00596_ R-06 Scavenger collects Welding Torch. 00601_ R-06 Scavenger collects Wheel. 00632_ ALERT: Infestation in the mines, dispatching Demolisher response squad. 00670_ C-30 ARC bursts open, deploying its payload. 00670_ D-53 Grenadier unfolds itself. 00672_ Ion Engine destroyed. 00673_ Com. Wheel destroyed. 00674_ The unstable cave ceiling collapses. 00675_ as-68456 destroyed. 00676_ Grenade Launcher destroyed. 00677_ Lgt. Assault Rifle destroyed. 00680_ The unstable cave ceiling collapses. 00680_ Imp. Terrain Scanner destroyed. 00682_ The unstable cave ceiling collapses. 00682_ Wheel destroyed. 00683_ Dropped Sml. Storage Unit. 00684_ The unstable cave ceiling collapses. Map ----- +----------------------------------------------------+ | ?????????????????????????????????????????????????? | | ???????????????????????????? ????????????????????? | | ?????????????????????????????????????????????????? | | ?????????????????????????????????????????????????? | | ?????????????????????????????????????????????????? | | ?????????????????????????????????????????????????? | | ????????????????????#????????????????????????????? | | ????????????????????????????????? ???????????????? | | ?????#???????????????????????????????????????????? | | ??????????###?????#??????????????????????????????? | | ?????#??## ####?????????????????????????#???????? | | ??????### ##??#????????##???????????????????? | | ??????# #?????###### #### #??????????????? | | ??????# #????## #??????????????? | | ??????+ #????## ### #??????????? | | ??????+ #?????# # #?????#??????????? | | ??????# #?????### # ##?#?????????????? | | ?????## #?????# ##?????????????? | | ?????# ##??????# #???????????????# | | ?????# ##?#?#???# ####??????????????# | | ?????# ##?????### d #?????????????????# | | ?????# ###??## ] #???????#?????????# | | ?????# #### d = #?????????????????# | | ?????## ## #?????????????????# | | ??????## #???###??????????## | | ???????### # @ #??## ?? ??????? | | ?????????## ## ##???# #??????????### | | ?????????## #?##?# ##???????????? | | ??###???## ###????# #????????????? | | ?## #### ## #??#???# ##???????????? | | ?# #### ###?????# #?#??????????? | | ?# ##### #### ########## #####????????? | | ?# ##???## #????????? | | ### ####?????## ##### ############## #????????? | | ??####??????????####???# #??#?????????# #????#???? | | ?#?????????????????#??## #?#??????????# #????????? | | ???#???????????????????# #????????#???# #????????? | | ???????????????????????# #????????????# ####?????? | | ???????????????????????# #??##????????# #?????? | | ????????????? ?????????# #?#??????????#### #?????? | | #???????????? ????????? ???????????????# #?????# | | ??????????????????????? ???????????????# #?????? | | ???????????????????????###???????????????# ######? | | ????????????????????????????? ???????????# #? | | ??????????????????????????? ?????????????###### #? | | ??#???????????????????????????????????????????# ## | | ???????????????????????????? ??????????#??????# | | ?????????????????????????????? ??#????????????#### | | ?????????????????????????????????????????????????? | | ?????????????????????????????????????????????????? | +----------------------------------------------------+ Best States ------------- Heat Dissipation 25 Energy Generation 10 Energy Capacity 250 Matter Stores 300 Matter Capacity 300 Sight Range 16 Terrain Scan Range 16 Terrain Scan Density 10 Evasion (%) 44 Item Schematics ----------------- None Robot Schematics ------------------ None Fabricated ------------ Nothing Alien Tech Used ----------------- None Achievements -------------- None Challenges ------------ None Game ------ Seed ChromaticGodMount Manual? 0 Play Time 00:11:24 Cumulative 128.0 hours Start 2024.08.12 @ 22:38:06 End 2024.08.12 @ 22:47:16 Sessions 1 Manual Loads 0 Difficulty Rogue Special Mode None Game No. 37 Rogue 18 Adventurer 17 Explorer 2 Win Type - Total 4 Types 3/0/1/0/0/0/0/0/0 Lore% 52 Gallery% 59 Achievement% 58 Wizard Run 0 Options --------- Layout 2 ASCII 0 Keyboard 1 Movement Vi Keybinds 0 Fullscreen 0 Font 20/SmallcapsGlow Map View 64x51 Zoom Use 0% Tactical HUD 1 Map Filters NONE Filters LOW_CONTRAST(13,24,33) Steam 1 RUN: 2aee0dab-eb30-49cb-8563-37123886f4e5